bitfinex/quotes_BTCUSD_20251104
["timestamp","ask_amount","ask_price","bid_price","bid_amount"]
[1762235007802,0.50626567,105310.0,105300.0,0.01884449]
[1762235008018,0.53843258,105310.0,105300.0,0.01884449]
[1762235008419,0.44697258,105310.0,105300.0,0.01884449]
[1762235008801,0.0295815,105310.0,105300.0,0.01884449]
[1762235009004,0.21623093,105310.0,105300.0,0.01908085]
[1762235009182,0.00368779,105310.0,105300.0,0.01908085]
[1762235009551,0.09689942,105310.0,105300.0,0.01908085]
[1762235009660,0.09689942,105310.0,105300.0,0.02479192]
[1762235010720,0.07470836,105320.0,105300.0,0.08744192]
[1762235010889,0.06470837,105320.0,105310.0,0.03753]
[1762235011098,0.07470836,105320.0,105310.0,0.03753]
[1762235011293,0.08834836,105320.0,105310.0,0.03753]
[1762235011532,0.20213743,105320.0,105310.0,0.04377667]
[1762235011874,0.20213743,105320.0,105310.0,0.00624667]
[1762235012082,0.07960744,105320.0,105310.0,0.03753]
[1762235012302,0.42517485,105320.0,105310.0,0.03753]
[1762235012534,0.42517485,105320.0,105310.0,0.19845]
[1762235013534,0.08517485,105320.0,105310.0,0.19845]
[1762235014104,0.46735485,105320.0,105310.0,0.03753]
[1762235014203,0.47735484,105320.0,105310.0,0.04377667]
[1762235014871,0.43517484,105320.0,105310.0,0.10642667]
[1762235015142,0.43517484,105320.0,105310.0,0.20469667]
[1762235015294,0.43517484,105320.0,105310.0,0.10642667]
[1762235015504,0.08517485,105320.0,105310.0,0.20469667]
[1762235016523,0.08517485,105320.0,105310.0,0.10642667]
[1762235016733,2.31725637,105320.0,105300.0,0.01922563]
[1762235017066,0.27592942,105310.0,105300.0,0.01922563]
[1762235017286,0.25218999,105310.0,105300.0,0.01922563]
[1762235017510,0.27927632,105310.0,105300.0,0.01922563]
[1762235017753,0.05218999,105310.0,105300.0,0.02585718]
[1762235017945,0.05218999,105310.0,105300.0,0.02685718]
[1762235018412,0.05218999,105310.0,105300.0,0.02585718]
[1762235018413,0.01041999,105310.0,105300.0,0.02585718]
[1762235018647,0.01041999,105310.0,105300.0,0.02685718]
[1762235019135,0.07592942,105310.0,105300.0,0.02685718]
[1762235019364,0.07592942,105310.0,105300.0,0.02022563]
[1762235019598,0.41592942,105310.0,105300.0,0.02022563]
[1762235019824,2.59218999,105310.0,105300.0,0.02022563]
[1762235020054,2.59218999,105310.0,105300.0,0.00228062]
[1762235020055,2.78210547,105310.0,105300.0,0.00228062]
[1762235020517,2.78210547,105310.0,105300.0,0.00128062]
[1762235020763,2.59318999,105310.0,105300.0,0.00228062]
[1762235020993,0.59318999,105310.0,105300.0,0.0010169]
[1762235021477,0.61042761,105310.0,105300.0,0.0010169]
[1762235022121,2.80034309,105310.0,105300.0,0.0010169]
[1762235022359,2.915761,105310.0,105300.0,0.0010169]
[1762235022569,0.34999999,105300.0,105290.0,0.00049982]
[1762235022790,0.52533151,105300.0,105290.0,0.00049982]
[1762235023838,0.52633151,105300.0,105290.0,0.00149982]
[1762235024757,0.71626503,105300.0,105290.0,0.00149982]
[1762235024993,0.71626503,105300.0,105280.0,0.02708633]
[1762235024994,0.38995156,105290.0,105280.0,0.02708633]
[1762235025207,2.40718918,105290.0,105280.0,0.01830633]
[1762235025418,2.40718918,105290.0,105270.0,0.00029962]
[1762235025419,2.00999999,105280.0,105270.0,0.00029962]
[1762235025626,2.00999999,105280.0,105260.0,0.3321782]
[1762235025627,2.04398,105270.0,105260.0,0.3321782]
[1762235025837,2.63261281,105270.0,105260.0,0.3321782]
[1762235026050,2.43261281,105270.0,105260.0,0.22932065]
[1762235026256,0.3170407,105270.0,105260.0,0.22932065]
[1762235026460,2.41713055,105270.0,105260.0,0.22932065]
[1762235026682,2.41707096,105270.0,105260.0,0.22932065]
[1762235026938,2.75707096,105270.0,105260.0,0.22932065]
[1762235027371,2.74707097,105270.0,105260.0,0.22932065]
[1762235027593,3.13905862,105270.0,105260.0,0.22932065]
[1762235027819,2.95907096,105270.0,105260.0,0.22932065]
[1762235028038,2.75907096,105270.0,105260.0,0.22932065]
[1762235028258,0.75545787,105270.0,105260.0,0.22932065]
[1762235028482,0.75907096,105270.0,105260.0,0.22932065]
[1762235028733,2.55907096,105270.0,105260.0,0.22932065]
[1762235029681,0.55907096,105270.0,105260.0,0.22932065]
[1762235029915,2.55907096,105270.0,105260.0,0.22932065]
[1762235031591,0.03405714,105270.0,105260.0,0.38840065]
[1762235031825,0.07801714,105270.0,105260.0,0.29496065]
[1762235032051,0.06310214,105270.0,105260.0,0.22932065]
[1762235032996,0.01914214,105270.0,105260.0,0.29496065]
[1762235033218,0.01714214,105270.0,105260.0,0.29496065]
[1762235033443,0.01814214,105270.0,105260.0,0.29496065]
[1762235033667,0.01814214,105270.0,105260.0,0.29590648]
[1762235034132,0.01814214,105270.0,105260.0,0.38934648]
[1762235035366,0.01814214,105270.0,105260.0,0.23026648]
[1762235035597,0.06213214,105270.0,105260.0,0.23026648]
[1762235036305,0.11333213,105270.0,105260.0,0.23026648]
[1762235036538,0.54143,105270.0,105260.0,0.23026648]
[1762235036800,0.54043,105270.0,105260.0,0.23026648]
[1762235037032,2.54043,105270.0,105260.0,0.23026648]
[1762235037255,2.54496011,105270.0,105260.0,0.23026648]
[1762235037477,2.54396011,105270.0,105260.0,0.23026648]
[1762235037696,2.54596011,105270.0,105260.0,0.23026648]
[1762235038143,2.73394776,105270.0,105260.0,0.23026648]
[1762235038379,2.54396011,105270.0,105260.0,0.23026648]
[1762235039326,0.54696011,105270.0,105260.0,0.23026648]
[1762235039782,0.34343,105270.0,105260.0,0.23026648]
[1762235040707,0.34696074,105270.0,105260.0,0.23026648]
[1762235040934,0.54696074,105270.0,105260.0,0.23026648]
[1762235041166,2.54696074,105270.0,105260.0,0.23026648]
[1762235041965,2.73694839,105270.0,105260.0,0.23026648]
[1762235042923,2.54696074,105270.0,105260.0,0.23026648]
[1762235043149,2.73694839,105270.0,105260.0,0.23026648]
[1762235043813,2.73694839,105270.0,105260.0,0.22626648]
[1762235044788,2.54696074,105270.0,105260.0,0.22626648]
[1762235045251,2.56187813,105270.0,105260.0,0.22626648]
[1762235045493,0.003,105270.0,105260.0,0.38534648]
[1762235046459,0.08532047,105300.0,105260.0,0.38525729]
[1762235046678,0.08532047,105300.0,105290.0,0.06564]
[1762235046912,0.08532047,105300.0,105290.0,0.15808]
[1762235047625,0.08532047,105300.0,105290.0,0.15708]
[1762235048358,0.08532047,105300.0,105270.0,0.09344]
[1762235048359,0.2,105290.0,105270.0,0.09344]
[1762235048596,0.34,105280.0,105270.0,0.09344]
[1762235048811,0.35718683,105280.0,105260.0,0.22523146]
[1762235049281,0.35718683,105280.0,105270.0,0.15908]
[1762235049511,0.01718683,105280.0,105270.0,0.08463876]
[1762235049756,0.01718683,105280.0,105270.0,0.06664]
[1762235049977,0.01718683,105280.0,105260.0,0.31867146]
[1762235049978,0.0408767,105280.0,105260.0,0.22523146]
[1762235050198,0.0318312,105280.0,105260.0,0.22623146]
[1762235050424,0.03436221,105280.0,105260.0,0.22523146]
[1762235050645,0.54353101,105270.0,105260.0,0.22523146]
[1762235050866,0.56118784,105270.0,105260.0,0.22523146]
[1762235051405,0.58976633,105270.0,105260.0,0.22523146]
[1762235051879,0.38929633,105270.0,105260.0,0.22523146]
[1762235052099,0.35718683,105270.0,105260.0,0.29087146]
[1762235052337,0.35646683,105270.0,105260.0,0.38431146]
[1762235053451,0.56765784,105270.0,105260.0,0.22723146]
[1762235053878,0.35646683,105270.0,105260.0,0.22523146]
[1762235054099,0.35746683,105270.0,105260.0,0.22823146]
[1762235054518,0.55746683,105270.0,105260.0,0.22823146]
[1762235054746,0.56512683,105270.0,105260.0,0.22823146]
[1762235054966,0.35746683,105270.0,105260.0,0.22823146]
[1762235055187,0.35746683,105270.0,105260.0,0.22523146]
[1762235055406,0.35646683,105270.0,105260.0,0.22523146]
[1762235055641,0.01718683,105270.0,105260.0,0.28869146]
[1762235055856,0.22857359,105290.0,105260.0,0.38690146]
[1762235055857,0.01718683,105290.0,105260.0,0.38690146]
[1762235056085,0.01718683,105290.0,105280.0,0.06246]
[1762235056303,0.01718683,105290.0,105280.0,0.06146]
[1762235056524,0.01718683,105290.0,105280.0,0.16067]
[1762235056740,0.1025073,105300.0,105280.0,0.06146]
[1762235056973,0.1025073,105300.0,105290.0,0.06246]
[1762235057189,0.1025073,105300.0,105280.0,0.09921]
[1762235057666,0.1025073,105300.0,105270.0,0.09921]
[1762235057667,0.2,105290.0,105270.0,0.09921]
[1762235057883,0.21718683,105290.0,105270.0,0.09921]
[1762235058119,0.2,105270.0,105260.0,0.22523146]
[1762235058340,0.21718683,105270.0,105260.0,0.22523146]
[1762235058563,0.02071786,105270.0,105260.0,0.22523146]
[1762235058802,0.02071786,105270.0,105260.0,0.38784729]
[1762235059041,0.01718683,105270.0,105260.0,0.38784729]
[1762235059511,0.37210191,105280.0,105260.0,0.38784729]
[1762235059729,0.37210191,105280.0,105260.0,0.38690146]
[1762235059970,0.37210191,105280.0,105260.0,0.43010961]
[1762235060211,0.03210191,105280.0,105260.0,0.43010961]
[1762235060447,0.03210191,105280.0,105260.0,0.43110961]
[1762235060659,0.37210191,105280.0,105260.0,0.43010961]
[1762235060869,0.35491508,105280.0,105260.0,0.43010961]
[1762235062412,0.35491508,105280.0,105260.0,0.43210961]
[1762235063317,0.54488754,105280.0,105260.0,0.27043961]
[1762235063537,0.35491508,105280.0,105260.0,0.27043961]
[1762235063759,0.01491508,105280.0,105260.0,0.27043961]
[1762235064037,2.25995677,105270.0,105260.0,0.22723146]
[1762235064261,2.44994442,105270.0,105260.0,0.22723146]
[1762235064917,0.20350375,105270.0,105260.0,0.22723146]
[1762235065135,2.4500014,105270.0,105260.0,0.22723146]
[1762235065392,2.4500014,105270.0,105260.0,0.12236896]
[1762235066266,2.7900014,105270.0,105260.0,0.12236896]
[1762235066500,2.7900014,105270.0,105240.0,0.00031079]
[1762235066501,0.73002375,105250.0,105240.0,0.00031079]
[1762235066723,0.73002375,105250.0,105210.0,0.14538667]
[1762235066724,1.16911385,105200.0,105180.0,0.02354798]
[1762235066951,1.16911385,105200.0,105190.0,0.04464]
[1762235067182,1.16911385,105200.0,105190.0,0.11386148]
[1762235067877,1.2274239,105200.0,105190.0,0.05140148]
[1762235068528,1.2274239,105200.0,105170.0,0.00385822]
[1762235068529,1.5682039,105200.0,105170.0,0.00385822]
[1762235068759,1.32516779,105200.0,105170.0,0.00385822]
[1762235068985,1.2274239,105200.0,105180.0,0.04335]
[1762235069226,1.2274239,105200.0,105190.0,0.03315321]
[1762235069227,1.18193801,105200.0,105190.0,0.03315321]
[1762235069454,1.18093801,105200.0,105190.0,0.01779032]
[1762235069894,1.18193801,105200.0,105190.0,0.01779032]
[1762235070112,1.18093801,105200.0,105190.0,0.01773283]
[1762235070331,1.18093801,105200.0,105190.0,0.10927283]
[1762235070805,1.18093801,105200.0,105190.0,0.1118756]
[1762235071486,1.18193801,105200.0,105190.0,0.1148756]
[1762235072571,1.16955336,105200.0,105190.0,0.13388881]
[1762235072997,1.16908636,105200.0,105190.0,0.1148756]
[1762235073410,0.41908636,105200.0,105190.0,0.13383388]
[1762235073635,0.23477,105260.0,105200.0,0.20961834]
[1762235073853,0.00014621,105260.0,105250.0,0.05636]
[1762235074070,0.00014621,105260.0,105250.0,0.1479]
[1762235074521,0.00014621,105260.0,105250.0,0.04634337]
[1762235074745,0.00014621,105260.0,105250.0,0.04534337]
[1762235074963,0.00014621,105260.0,105250.0,0.15349337]
[1762235075182,0.00014621,105260.0,105250.0,0.12354271]
[1762235075407,0.00114621,105260.0,105250.0,0.12654271]
[1762235075630,0.00014621,105260.0,105250.0,0.12354271]
[1762235075858,0.00114621,105260.0,105250.0,0.12754271]
[1762235076099,0.01348398,105260.0,105250.0,0.14654508]
[1762235076340,0.02946621,105260.0,105250.0,0.06469271]
[1762235076577,0.39508608,105260.0,105250.0,0.004]
[1762235076802,2.56140191,105260.0,105250.0,0.004]
[1762235077036,2.90140191,105260.0,105250.0,0.004]
[1762235077728,2.90140191,105260.0,105210.0,0.04643]
[1762235077729,0.34,105230.0,105210.0,0.04643]
[1762235077957,0.34,105230.0,105210.0,0.060227]
[1762235078333,0.5790104,105230.0,105210.0,0.06015009]
[1762235078428,0.142,105220.0,105210.0,0.013797]
[1762235078662,0.34,105210.0,105190.0,0.00765032]
[1762235078880,0.34,105210.0,105190.0,0.09919032]
[1762235079104,0.33980998,105210.0,105190.0,0.09919032]
[1762235079539,0.33980998,105210.0,105200.0,0.00236593]
[1762235079760,0.04895,105230.0,105200.0,0.02295593]
[1762235079999,0.04895,105230.0,105200.0,0.14448591]
[1762235080217,0.09362,105250.0,105220.0,0.046]
[1762235080448,2.0,105240.0,105220.0,0.046]
[1762235080905,2.09362,105240.0,105220.0,0.045]
[1762235081123,0.43362,105240.0,105220.0,0.045]
[1762235081343,0.43362,105240.0,105220.0,0.058491]
[1762235081561,0.43362,105240.0,105220.0,0.060491]
[1762235081785,0.43362,105240.0,105220.0,0.058491]
[1762235082268,0.341,105240.0,105220.0,0.17203879]
[1762235082555,0.001,105240.0,105230.0,0.03252598]
[1762235082782,0.001,105240.0,105230.0,0.14181168]
[1762235083892,0.00114616,105240.0,105230.0,0.1228057]
[1762235084110,0.00114616,105240.0,105230.0,0.0185557]
[1762235084328,0.06131616,105240.0,105220.0,0.045]
[1762235084537,0.02483603,105240.0,105230.0,0.005]
[1762235084998,0.00014616,105240.0,105220.0,0.13654]
[1762235085223,0.00114616,105240.0,105230.0,0.01652]
[1762235086079,0.00014616,105240.0,105230.0,0.01352]
[1762235086297,0.00114616,105240.0,105230.0,0.028526]
[1762235087389,0.00114616,105240.0,105230.0,0.109]
[1762235087836,0.04027123,105260.0,105230.0,0.109]
[1762235088069,0.04027123,105260.0,105230.0,0.10948568]
[1762235088070,0.34,105250.0,105230.0,0.10948568]
[1762235088281,0.13392123,105260.0,105230.0,0.10948568]
[1762235088497,0.001,105240.0,105230.0,0.11348568]
[1762235088731,0.34,105250.0,105230.0,0.12533425]
[1762235089170,0.34,105250.0,105230.0,0.12733425]
[1762235089400,0.34,105250.0,105230.0,0.12533425]
[1762235089622,0.001,105240.0,105230.0,0.12933425]
[1762235090063,0.34,105250.0,105230.0,0.12533425]
[1762235090497,0.34,105250.0,105240.0,0.04379]
[1762235090713,2.0,105240.0,105230.0,0.01633425]
[1762235090925,2.0,105240.0,105230.0,0.00048568]
[1762235091399,2.0,105240.0,105230.0,0.00348568]
[1762235091615,2.0,105240.0,105230.0,0.00048568]
[1762235091831,0.14272,105240.0,105230.0,0.00048568]
[1762235092049,0.55745167,105240.0,105230.0,0.00548568]
[1762235092274,0.5337618,105240.0,105230.0,0.00548568]
[1762235093894,0.48626489,105240.0,105230.0,0.00548568]
[1762235094387,0.29522309,105240.0,105230.0,0.00048568]
[1762235094608,0.48626489,105240.0,105230.0,0.00448568]
[1762235094823,0.48526489,105240.0,105230.0,0.00048568]
[1762235095034,2.48526489,105240.0,105230.0,0.00048568]
[1762235095255,2.82626489,105240.0,105230.0,0.00348568]
[1762235095476,0.34,105200.0,105190.0,0.04716]
[1762235095725,0.42566163,105200.0,105190.0,0.04716]
[1762235095944,0.42566163,105200.0,105190.0,0.19148721]
[1762235096161,0.42566163,105200.0,105190.0,0.172474]
[1762235096376,0.08566163,105200.0,105190.0,0.172474]
[1762235096617,0.08566163,105200.0,105190.0,0.17507677]
[1762235096833,0.0853766,105200.0,105190.0,0.07768677]
[1762235097041,0.08442603,105200.0,105190.0,0.06864677]
[1762235097266,0.39338996,105200.0,105190.0,0.00260277]
[1762235097500,2.70970009,105200.0,105190.0,0.00260277]
[1762235097730,2.70970009,105200.0,105190.0,0.00460277]
[1762235097731,2.71070009,105200.0,105190.0,0.00460277]
[1762235098442,2.71070009,105200.0,105190.0,0.00260277]
[1762235098443,2.70970009,105200.0,105190.0,0.00260277]
[1762235098649,2.90970009,105200.0,105190.0,0.00260277]
[1762235098872,2.91070009,105200.0,105190.0,0.00660277]
[1762235099091,2.92562404,105200.0,105190.0,0.00660277]
[1762235099757,2.73550998,105200.0,105190.0,0.00660277]
[1762235099977,2.92562404,105200.0,105190.0,0.00660277]
[1762235100190,2.91070009,105200.0,105190.0,0.00660277]
[1762235100403,2.0,105180.0,105170.0,0.00385822]
[1762235100632,2.00045,105180.0,105170.0,0.00385822]
[1762235100886,0.00045,105180.0,105170.0,0.00385822]
[1762235101116,0.07232,105190.0,105170.0,0.06243822]
[1762235101336,0.13393603,105200.0,105180.0,0.00103]
[1762235101337,0.13493603,105200.0,105180.0,0.00103]
[1762235101565,0.13393603,105200.0,105190.0,0.04716]
[1762235101788,0.3588559,105200.0,105190.0,0.04616]
[1762235102003,0.3588559,105200.0,105180.0,0.01901502]
[1762235102004,0.33516603,105200.0,105180.0,0.01901502]
[1762235102273,0.33516603,105200.0,105190.0,0.04616]
[1762235102274,0.13393603,105200.0,105190.0,0.04616]
[1762235102516,0.00048678,105200.0,105190.0,0.19026371]
[1762235102973,0.08517485,105220.0,105190.0,0.1712505]
[1762235103206,0.10008565,105250.0,105210.0,0.04828]
[1762235103425,0.10008565,105250.0,105220.0,0.01900779]
[1762235103657,0.10008565,105250.0,105240.0,0.01813]
[1762235104097,0.10008565,105250.0,105220.0,0.11733779]
[1762235104383,0.25080987,105240.0,105210.0,0.07029037]
[1762235104598,0.25080987,105240.0,105220.0,0.005]
[1762235104599,0.39080987,105240.0,105220.0,0.005]
[1762235104815,0.39080987,105240.0,105220.0,0.00014616]
[1762235105035,0.34,105240.0,105220.0,0.11748395]
[1762235105270,0.34,105240.0,105220.0,0.13626138]
[1762235105503,0.34,105240.0,105220.0,0.00014616]
[1762235105504,0.58113973,105230.0,105220.0,0.00014616]
[1762235105731,0.34,105230.0,105220.0,0.04763616]
[1762235105958,0.30057732,105250.0,105220.0,0.11188616]
[1762235105959,0.30008565,105250.0,105220.0,0.11188616]
[1762235106192,0.10008565,105250.0,105230.0,0.01900598]
[1762235106400,0.10008565,105250.0,105230.0,0.04408]
[1762235106401,0.2149108,105250.0,105230.0,0.04408]
[1762235106625,0.02368987,105240.0,105220.0,0.09171616]
[1762235106840,0.02468987,105240.0,105230.0,0.06404]
[1762235107070,0.0149108,105250.0,105230.0,0.12731598]
[1762235107307,0.01240922,105260.0,105240.0,0.10787]
[1762235107530,0.001,105250.0,105240.0,0.06346418]
[1762235107756,0.08517485,105270.0,105260.0,0.062]
[1762235108243,0.08517485,105270.0,105260.0,0.10683]
[1762235108453,0.08517485,105270.0,105260.0,0.10582]
[1762235108669,0.3295134,105310.0,105260.0,0.12482057]
[1762235108670,0.01171183,105280.0,105260.0,0.12482057]
[1762235108903,0.01171183,105280.0,105270.0,0.12770876]
[1762235109126,0.00014613,105280.0,105270.0,0.18710876]
[1762235109346,0.0122569,105280.0,105270.0,0.16811]
[1762235109578,0.00014613,105280.0,105270.0,0.18682106]
[1762235109997,0.00014613,105280.0,105270.0,0.18582106]
[1762235110649,0.00114613,105280.0,105270.0,0.18982106]
[1762235111102,0.00114613,105280.0,105270.0,0.02057]
[1762235111337,0.00114613,105280.0,105270.0,0.08482]
[1762235112275,0.00114613,105280.0,105270.0,0.18315]
[1762235114719,0.00114613,105280.0,105270.0,0.004]
[1762235114720,0.20114613,105280.0,105270.0,0.004]
[1762235114938,0.00114613,105280.0,105270.0,0.004]
[1762235115380,0.224836,105280.0,105270.0,0.004]
[1762235115603,2.48968573,105280.0,105270.0,0.004]
[1762235115820,2.53743648,105280.0,105270.0,0.004]
[1762235116067,0.39002399,105250.0,105230.0,0.01749521]
[1762235116300,0.2,105230.0,105210.0,0.04135]
[1762235116537,0.10886472,105220.0,105210.0,0.04135]
[1762235116758,0.42517485,105220.0,105210.0,0.04135]
[1762235117198,0.42517485,105220.0,105210.0,0.13251]
[1762235117426,0.34,105220.0,105210.0,0.14766214]
[1762235117640,0.001,105230.0,105210.0,0.2023183]
[1762235117858,0.08517485,105240.0,105220.0,0.09116]
[1762235117859,0.42517485,105240.0,105220.0,0.09116]
[1762235118077,0.42488979,105240.0,105220.0,0.11016779]
[1762235118298,0.42488979,105240.0,105220.0,0.10958374]
[1762235118518,0.42488979,105240.0,105230.0,0.01900598]
[1762235118964,0.08488979,105240.0,105230.0,0.01900598]
[1762235119244,0.08488979,105240.0,105230.0,0.08143598]
[1762235119463,0.08517485,105260.0,105230.0,0.08143598]
[1762235119666,0.08517485,105260.0,105230.0,0.1814019]
[1762235119943,0.42517485,105260.0,105250.0,0.10643]
[1762235120150,0.08517485,105260.0,105250.0,0.10543]
[1762235120379,0.08517485,105260.0,105250.0,0.1034546]
[1762235121042,0.10892105,105280.0,105250.0,0.1034546]
[1762235121254,0.10892105,105280.0,105250.0,0.11380006]
[1762235121255,0.001,105260.0,105250.0,0.11380006]
[1762235121698,0.001,105260.0,105250.0,0.05434546]
[1762235121919,0.01206595,105290.0,105250.0,0.18814999]
[1762235122135,0.01206595,105290.0,105280.0,0.10695]
[1762235122342,0.10007818,105300.0,105280.0,0.10695]
[1762235122343,0.08517485,105300.0,105280.0,0.10695]
[1762235122558,0.09739619,105300.0,105290.0,0.09195]
[1762235123192,0.09739619,105300.0,105280.0,0.13547]
[1762235123403,0.09739619,105300.0,105280.0,0.04431]
[1762235123404,0.21520788,105300.0,105280.0,0.04431]
[1762235123633,0.34,105290.0,105280.0,0.04431]
[1762235123886,0.43839619,105300.0,105280.0,0.14047]
[1762235124135,0.53146619,105300.0,105280.0,0.04431]
[1762235124355,0.43739619,105300.0,105280.0,0.13547]
[1762235124803,0.45450912,105300.0,105280.0,0.13547]
[1762235125007,0.69957394,105290.0,105250.0,0.13516]
[1762235125221,0.5537168,105280.0,105250.0,0.148676]
[1762235125443,0.04085862,105280.0,105250.0,0.148676]
[1762235125652,0.14986586,105290.0,105280.0,0.004]
[1762235125863,0.18997181,105280.0,105250.0,0.148676]
[1762235126081,0.33981742,105290.0,105250.0,0.148676]
[1762235126290,0.33981742,105290.0,105250.0,0.06001343]
[1762235126499,0.05579586,105290.0,105260.0,0.09116]
[1762235126925,0.05679586,105290.0,105280.0,0.004]
[1762235127140,0.05579586,105290.0,105260.0,0.09116]
[1762235127563,0.01590586,105290.0,105260.0,0.09116]
[1762235127770,0.01590586,105290.0,105280.0,0.0398]
[1762235127771,0.001,105290.0,105280.0,0.0398]
[1762235127986,0.001,105290.0,105260.0,0.10512574]
[1762235128416,0.001,105290.0,105280.0,0.03928]
[1762235128625,0.001,105290.0,105260.0,0.10512574]
[1762235128827,0.04373367,105290.0,105260.0,0.10512574]
[1762235129262,0.00952381,105290.0,105260.0,0.10512574]
[1762235129476,0.00858014,105290.0,105260.0,0.12412631]
[1762235129689,0.001,105290.0,105280.0,0.04508]
[1762235129932,0.11231055,105300.0,105280.0,0.05518871]
[1762235130176,0.001,105290.0,105280.0,0.05518871]
[1762235130404,0.11325422,105300.0,105280.0,0.05518871]
[1762235130657,0.31177295,105300.0,105280.0,0.05518871]
[1762235130875,0.04478,105290.0,105280.0,0.01510871]
[1762235131097,0.05430575,105290.0,105280.0,0.01510871]
[1762235131572,0.05430575,105290.0,105280.0,0.12774]
[1762235131573,0.01052575,105290.0,105280.0,0.12774]
[1762235131811,0.00958208,105290.0,105280.0,0.03607]
[1762235132032,0.00858208,105290.0,105280.0,0.03607]
[1762235132262,0.05603575,105290.0,105280.0,0.008]
[1762235132494,0.39503575,105290.0,105250.0,0.13724743]
[1762235132719,0.18996981,105280.0,105250.0,0.15097217]
[1762235132939,0.08517485,105260.0,105250.0,0.15097217]
[1762235133383,0.08517485,105260.0,105250.0,0.04449743]
[1762235133608,0.08517485,105260.0,105250.0,0.00049743]
[1762235133609,0.56257852,105260.0,105250.0,0.00049743]
[1762235133830,0.53460485,105260.0,105250.0,0.00049743]
[1762235134481,0.54951361,105260.0,105250.0,0.00049743]
[1762235134703,0.53460485,105260.0,105250.0,0.00049743]
[1762235134932,0.95164055,105260.0,105250.0,0.00049743]
[1762235135426,2.96755755,105260.0,105250.0,0.00449743]
[1762235135653,0.19953855,105250.0,105210.0,0.04135]
[1762235135885,2.19006074,105230.0,105210.0,0.0416564]
[1762235136108,0.04669367,105220.0,105210.0,0.0003064]
[1762235136345,2.5264116,105220.0,105210.0,0.0003064]
[1762235136567,2.52597834,105220.0,105210.0,0.0003064]
[1762235137467,2.52597834,105220.0,105170.0,0.06163263]
[1762235137681,2.52597834,105220.0,105210.0,0.001]
[1762235137682,2.26290526,105220.0,105210.0,0.001]
[1762235137898,0.08517485,105190.0,105170.0,0.05560177]
[1762235138118,0.08517485,105190.0,105170.0,0.00993039]
[1762235138358,0.42517485,105190.0,105160.0,0.020233]
[1762235139104,0.44231418,105190.0,105160.0,0.02071978]
[1762235139321,0.42517485,105190.0,105160.0,0.02071978]
[1762235139739,0.42617485,105190.0,105160.0,0.07494841]
[1762235140620,0.42617485,105190.0,105160.0,0.05592978]
[1762235140830,0.42617485,105190.0,105170.0,0.05422682]
[1762235141265,0.42617485,105190.0,105170.0,0.03521]
[1762235141495,0.341,105190.0,105180.0,0.03523]
[1762235141955,0.0453,105220.0,105180.0,0.03523]
[1762235142177,0.0624123,105220.0,105190.0,0.01901321]
[1762235142399,0.001,105190.0,105180.0,0.04065468]
[1762235142643,0.00094367,105210.0,105180.0,0.04065468]
[1762235142944,0.09174367,105210.0,105180.0,0.04065468]
[1762235143163,0.09174367,105210.0,105160.0,0.0675508]
[1762235143164,0.13934418,105200.0,105160.0,0.0675508]
[1762235143383,0.00094367,105190.0,105160.0,0.0675508]
[1762235143602,0.04854418,105200.0,105170.0,0.03524]
[1762235143815,0.06564711,105200.0,105170.0,0.04203708]
[1762235144044,0.01710293,105200.0,105170.0,0.04203708]
[1762235144253,0.15429528,105200.0,105170.0,0.04203708]
[1762235144463,0.08059677,105200.0,105170.0,0.04203708]
[1762235144688,0.08059844,105200.0,105170.0,0.04203708]
[1762235144897,0.001,105190.0,105180.0,0.003]
[1762235145131,0.00080989,105190.0,105180.0,0.003]
[1762235145349,0.34,105190.0,105170.0,0.00679708]
[1762235145562,0.15784528,105200.0,105170.0,0.06156708]
[1762235145563,0.40449528,105200.0,105170.0,0.06156708]
[1762235145778,0.51494286,105200.0,105160.0,0.0839808]
[1762235146244,0.001,105190.0,105180.0,0.003]
[1762235146459,0.49784528,105200.0,105170.0,0.05073]
[1762235146700,0.08058725,105200.0,105170.0,0.05373]
[1762235146914,0.06543895,105200.0,105170.0,0.05373]
[1762235147138,0.08158753,105200.0,105170.0,0.08329476]
[1762235147379,0.001,105200.0,105190.0,0.00103]
[1762235147600,0.001,105200.0,105190.0,0.02004321]
[1762235147819,0.001,105200.0,105190.0,0.07660321]
[1762235148034,0.14839951,105230.0,105190.0,0.07660321]
[1762235148252,0.14839951,105230.0,105200.0,0.05506]
[1762235148468,0.34,105220.0,105200.0,0.05506]
[1762235148903,0.34,105220.0,105200.0,0.05406]
[1762235149119,0.34,105220.0,105190.0,0.00766032]
[1762235149120,0.00094367,105210.0,105190.0,0.00766032]
[1762235149338,0.00094367,105210.0,105170.0,0.01054794]
[1762235149557,0.00094367,105210.0,105190.0,9.216e-05]
[1762235149781,0.34,105220.0,105200.0,0.03399]
[1762235149995,0.00094367,105210.0,105190.0,9.216e-05]
[1762235150446,0.00094367,105210.0,105130.0,0.24422878]
[1762235150447,2.0,105150.0,105110.0,0.34250833]
[1762235150722,0.06143,105120.0,105110.0,0.34299511]
[1762235150942,0.06237367,105120.0,105110.0,0.34299511]
[1762235151411,0.04850991,105130.0,105110.0,0.34299511]
[1762235151630,0.14285991,105130.0,105110.0,0.34299511]
[1762235152057,0.08617485,105120.0,105110.0,0.34699511]
[1762235152270,0.08517485,105120.0,105110.0,0.34299511]
[1762235152490,0.52046852,105120.0,105110.0,0.34299511]
[1762235152707,0.58430485,105120.0,105110.0,0.34599511]
[1762235152923,0.58430485,105120.0,105110.0,0.34299511]
[1762235153137,0.42517485,105120.0,105110.0,0.34299511]
[1762235153347,0.42517485,105120.0,105110.0,0.34227403]
[1762235153579,0.42517485,105120.0,105110.0,0.37704143]
[1762235154009,0.42506884,105120.0,105110.0,0.34227403]
[1762235154249,0.42606884,105120.0,105110.0,0.34727403]
[1762235155132,0.58519884,105120.0,105110.0,0.34727403]
[1762235155819,0.49084884,105120.0,105110.0,0.34727403]
[1762235156030,0.42606884,105120.0,105110.0,0.34727403]
[1762235156256,0.42606884,105120.0,105110.0,0.34893255]
[1762235156493,0.58519884,105120.0,105110.0,0.34893255]
[1762235156733,0.49084884,105120.0,105110.0,0.34893255]
[1762235157191,0.42606884,105120.0,105110.0,0.34893255]
[1762235157619,0.49084884,105120.0,105110.0,0.34893255]
[1762235157854,0.42606884,105120.0,105110.0,0.34893255]
[1762235159168,0.42606884,105120.0,105100.0,0.0054]
[1762235159169,0.77545759,105120.0,105100.0,0.0054]
[1762235159388,0.77545759,105120.0,105090.0,0.00036104]
[1762235159389,0.20999999,105010.0,105000.0,31.28896116]
[1762235159610,0.20999999,105010.0,105000.0,30.4766022]
[1762235159611,3.32087096,105010.0,105000.0,30.4766022]
[1762235159823,3.32087096,105010.0,105000.0,30.47609471]